[Event "Titled Tuesday Blitz October 25 Late 2022"]
[White "Moreno Perez, Tobias Sebastian"]
[Black "Goroshkov, Maksym"]
[WhiteFideId "186716"]
[BlackFideId "14142716"]
[WhiteElo "2499"]
[BlackElo "2257"]
[Result "0-1"]
[Round "10"]
[TimeControl "180+1"]
[Date "2022.10.26"]
[WhiteClock "0:00:02"]
[BlackClock "0:00:35"]

1. d4 {[%clk 0:03:00]}  Nf6 {[%clk 0:02:58]} 2. Nf3 {[%clk 0:03:01]}  d6 {[%clk 0:02:59]} 3. g3 {[%clk 0:03:00]}  g6 {[%clk 0:02:59]} 4. Bg2 {[%clk 0:03:00]}  Bg7 {[%clk 0:03:00]} 5. O-O {[%clk 0:03:00]}  O-O {[%clk 0:03:00]} 6. c4 {[%clk 0:03:01]}  c6 {[%clk 0:03:00]} 7. Nc3 {[%clk 0:03:00]}  Bg4 {[%clk 0:03:00]} 8. b3 {[%clk 0:02:58]}  Qc8 {[%clk 0:03:00]} 9. Re1 {[%clk 0:02:57]}  Bh3 {[%clk 0:03:00]} 10. Bh1 {[%clk 0:02:57]}  Nbd7 {[%clk 0:03:00]} 11. Bb2 {[%clk 0:02:57]}  e5 {[%clk 0:02:59]} 12. dxe5 {[%clk 0:02:47]}  dxe5 {[%clk 0:03:00]} 13. Ng5 {[%clk 0:02:46]}  Bf5 {[%clk 0:02:53]} 14. e4 {[%clk 0:02:45]}  Bg4 {[%clk 0:02:54]} 15. f3 {[%clk 0:02:45]}  Be6 {[%clk 0:02:53]} 16. Nxe6 {[%clk 0:02:43]}  fxe6 {[%clk 0:02:54]} 17. Qd6 {[%clk 0:02:41]}  Re8 {[%clk 0:02:48]} 18. Bg2 {[%clk 0:02:37]}  Bf8 {[%clk 0:02:47]} 19. Qd2 {[%clk 0:02:36]}  Bc5+ {[%clk 0:02:47]} 20. Kh1 {[%clk 0:02:35]}  Bd4 {[%clk 0:02:47]} 21. Rad1 {[%clk 0:02:33]}  c5 {[%clk 0:02:46]} 22. Nb5 {[%clk 0:02:18]}  Qc6 {[%clk 0:02:45]} 23. Nxd4 {[%clk 0:02:13]}  exd4 {[%clk 0:02:44]} 24. e5 {[%clk 0:02:09]}  Nh5 {[%clk 0:02:42]} 25. f4 {[%clk 0:02:04]}  Qc7 {[%clk 0:02:40]} 26. Qd3 {[%clk 0:01:54]}  Rad8 {[%clk 0:02:38]} 27. Qe4 {[%clk 0:01:54]}  b6 {[%clk 0:02:38]} 28. Rf1 {[%clk 0:01:49]}  Ng7 {[%clk 0:02:36]} 29. g4 {[%clk 0:01:48]}  Rf8 {[%clk 0:02:24]} 30. Bc1 {[%clk 0:01:46]}  Rf7 {[%clk 0:02:23]} 31. Bd2 {[%clk 0:01:37]}  Rdf8 {[%clk 0:02:22]} 32. Rf3 {[%clk 0:01:02]}  a6 {[%clk 0:02:04]} 33. Rh3 {[%clk 0:01:02]}  b5 {[%clk 0:02:00]} 34. Qe1 {[%clk 0:00:54]}  Ne8 {[%clk 0:01:53]} 35. Qh4 {[%clk 0:00:47]}  Qb8 {[%clk 0:01:39]} 36. Be4 {[%clk 0:00:41]}  Rg7 {[%clk 0:01:38]} 37. Rf1 {[%clk 0:00:21]}  Nxe5 {[%clk 0:01:36]} 38. Qg5 {[%clk 0:00:13]}  Nd7 {[%clk 0:01:29]} 39. Rg1 {[%clk 0:00:12]}  Nef6 {[%clk 0:01:24]} 40. Bf3 {[%clk 0:00:11]}  e5 {[%clk 0:01:20]} 41. fxe5 {[%clk 0:00:08]}  Qxe5 {[%clk 0:01:16]} 42. Qh6 {[%clk 0:00:08]}  Ne4 {[%clk 0:01:08]} 43. Re1 {[%clk 0:00:01]}  Ndf6 {[%clk 0:00:59]} 44. Kg2 {[%clk 0:00:01]}  bxc4 {[%clk 0:00:54]} 45. bxc4 {[%clk 0:00:01]}  Qe6 {[%clk 0:00:55]} 46. Bf4 {[%clk 0:00:01]}  Qxc4 {[%clk 0:00:54]} 47. Bxe4 {[%clk 0:00:01]}  Nxe4 {[%clk 0:00:54]} 48. Be5 {[%clk 0:00:01]}  Qc2+ {[%clk 0:00:49]} 49. Kh1 {[%clk 0:00:01]}  Nf2+ {[%clk 0:00:48]} 50. Kg2 {[%clk 0:00:02]}  Nxh3+ {[%clk 0:00:48]} 51. Kxh3 {[%clk 0:00:03]}  Rf3+ {[%clk 0:00:37]} 52. Kh4 {[%clk 0:00:03]}  Qf2+ {[%clk 0:00:36]} 53. Bg3 {[%clk 0:00:02]}  Rxg3 {[%clk 0:00:35]} 0-1


[Site "https://www.chess.com"]

[Event "Titled Tuesday Blitz October 25 Late 2022"]
[White "Omariev, Maksim"]
[Black "Polster, Christian"]
[WhiteFideId "4193423"]
[BlackFideId "12965081"]
[WhiteElo "2415"]
[BlackElo "2209"]
[Result "1-0"]
[Round "10"]
[TimeControl "180+1"]
[Date "2022.10.26"]
[WhiteClock "0:00:08"]
[BlackClock "0:00:03"]

1. g4 {[%clk 0:03:00]}  d5 {[%clk 0:02:56]} 2. Bg2 {[%clk 0:03:01]}  Bxg4 {[%clk 0:02:52]} 3. c4 {[%clk 0:02:58]}  dxc4 {[%clk 0:02:53]} 4. Bxb7 {[%clk 0:02:57]}  Nd7 {[%clk 0:02:53]} 5. Bxa8 {[%clk 0:02:58]}  Qxa8 {[%clk 0:02:54]} 6. f3 {[%clk 0:02:58]}  e5 {[%clk 0:02:53]} 7. Qa4 {[%clk 0:02:58]}  Be6 {[%clk 0:02:52]} 8. Na3 {[%clk 0:02:57]}  Qd5 {[%clk 0:02:24]} 9. b3 {[%clk 0:01:54]}  Qd4 {[%clk 0:01:58]} 10. Rb1 {[%clk 0:01:38]}  Qh4+ {[%clk 0:01:53]} 11. Kf1 {[%clk 0:00:59]}  Bc5 {[%clk 0:01:46]} 12. e3 {[%clk 0:00:58]}  Nf6 {[%clk 0:01:14]} 13. Nxc4 {[%clk 0:00:57]}  O-O {[%clk 0:01:06]} 14. Bb2 {[%clk 0:00:35]}  Nh5 {[%clk 0:00:22]} 15. Nxe5 {[%clk 0:00:29]}  Ng3+ {[%clk 0:00:18]} 16. hxg3 {[%clk 0:00:24]}  Qxh1 {[%clk 0:00:16]} 17. Qh4 {[%clk 0:00:17]}  Qxh4 {[%clk 0:00:13]} 18. gxh4 {[%clk 0:00:18]}  Nxe5 {[%clk 0:00:10]} 19. Bxe5 {[%clk 0:00:19]}  Bd6 {[%clk 0:00:08]} 20. Bxd6 {[%clk 0:00:19]}  cxd6 {[%clk 0:00:09]} 21. Ke2 {[%clk 0:00:19]}  a5 {[%clk 0:00:08]} 22. Rc1 {[%clk 0:00:18]}  Ra8 {[%clk 0:00:08]} 23. Rc6 {[%clk 0:00:17]}  a4 {[%clk 0:00:08]} 24. bxa4 {[%clk 0:00:06]}  Rxa4 {[%clk 0:00:08]} 25. Rxd6 {[%clk 0:00:06]}  g6 {[%clk 0:00:09]} 26. e4 {[%clk 0:00:04]}  Rxa2 {[%clk 0:00:09]} 27. Ke3 {[%clk 0:00:04]}  Ra1 {[%clk 0:00:08]} 28. Ne2 {[%clk 0:00:04]}  Rh1 {[%clk 0:00:08]} 29. Nf4 {[%clk 0:00:04]}  Rxh4 {[%clk 0:00:05]} 30. Nxe6 {[%clk 0:00:04]}  fxe6 {[%clk 0:00:06]} 31. Rxe6 {[%clk 0:00:04]}  Kf7 {[%clk 0:00:05]} 32. Ra6 {[%clk 0:00:04]}  Rh1 {[%clk 0:00:06]} 33. d4 {[%clk 0:00:04]}  Rd1 {[%clk 0:00:06]} 34. d5 {[%clk 0:00:05]}  h5 {[%clk 0:00:06]} 35. Kf4 {[%clk 0:00:05]}  Rd3 {[%clk 0:00:05]} 36. d6 {[%clk 0:00:05]}  Ke6 {[%clk 0:00:05]} 37. e5 {[%clk 0:00:05]}  Rd4+ {[%clk 0:00:04]} 38. Ke3 {[%clk 0:00:03]}  Rd1 {[%clk 0:00:05]} 39. f4 {[%clk 0:00:02]}  h4 {[%clk 0:00:05]} 40. Ra7 {[%clk 0:00:02]}  h3 {[%clk 0:00:04]} 41. Re7+ {[%clk 0:00:02]}  Kf5 {[%clk 0:00:04]} 42. Rf7+ {[%clk 0:00:02]}  Kg4 {[%clk 0:00:04]} 43. d7 {[%clk 0:00:03]}  h2 {[%clk 0:00:04]} 44. Rh7 {[%clk 0:00:03]}  Rxd7 {[%clk 0:00:04]} 45. Rxh2 {[%clk 0:00:03]}  Rb7 {[%clk 0:00:04]} 46. Rg2+ {[%clk 0:00:03]}  Kf5 {[%clk 0:00:04]} 47. Rg5+ {[%clk 0:00:04]}  Ke6 {[%clk 0:00:04]} 48. Rxg6+ {[%clk 0:00:05]}  Kd5 {[%clk 0:00:04]} 49. Rd6+ {[%clk 0:00:05]}  Kc5 {[%clk 0:00:04]} 50. f5 {[%clk 0:00:06]}  Rb3+ {[%clk 0:00:04]} 51. Kf4 {[%clk 0:00:06]}  Rb4+ {[%clk 0:00:04]} 52. Kg5 {[%clk 0:00:07]}  Re4 {[%clk 0:00:05]} 53. Kf6 {[%clk 0:00:07]}  Rh4 {[%clk 0:00:05]} 54. Re6 {[%clk 0:00:07]}  Kd5 {[%clk 0:00:05]} 55. Re7 {[%clk 0:00:06]}  Ke4 {[%clk 0:00:04]} 56. Kf7 {[%clk 0:00:05]}  Kxf5 {[%clk 0:00:04]} 57. e6 {[%clk 0:00:06]}  Rh7+ {[%clk 0:00:04]} 58. Ke8 {[%clk 0:00:06]}  Rh8+ {[%clk 0:00:04]} 59. Kd7 {[%clk 0:00:06]}  Kf6 {[%clk 0:00:03]} 60. Rf7+ {[%clk 0:00:06]}  Ke5 {[%clk 0:00:03]} 61. Rf1 {[%clk 0:00:07]}  Rh7+ {[%clk 0:00:02]} 62. e7 {[%clk 0:00:07]}  Rg7 {[%clk 0:00:03]} 63. Kd8 {[%clk 0:00:07]}  Kd6 {[%clk 0:00:03]} 64. e8=Q {[%clk 0:00:07]}  Rc7 {[%clk 0:00:03]} 65. Qf8+ {[%clk 0:00:07]}  Kc6 {[%clk 0:00:03]} 66. Rc1+ {[%clk 0:00:08]} 1-0


[Site "https://www.chess.com"]

[Event "Titled Tuesday Blitz October 25 Late 2022"]
[White "Perez Cruz, Adianet"]
[Black "chess50years"]
[WhiteFideId "3510115"]
[WhiteElo "2155"]
[BlackElo "1708"]
[Result "1-0"]
[Round "10"]
[TimeControl "180+1"]
[Date "2022.10.26"]
[WhiteClock "0:01:15"]
[BlackClock "0:01:06"]

1. d4 {[%clk 0:03:00]}  Nf6 {[%clk 0:02:56]} 2. Bg5 {[%clk 0:02:58]}  d5 {[%clk 0:02:54]} 3. e3 {[%clk 0:02:54]}  Bf5 {[%clk 0:02:54]} 4. Nf3 {[%clk 0:02:54]}  Nbd7 {[%clk 0:02:53]} 5. c3 {[%clk 0:02:48]}  h6 {[%clk 0:02:51]} 6. Bf4 {[%clk 0:02:37]}  c6 {[%clk 0:02:51]} 7. Nbd2 {[%clk 0:02:35]}  Qb6 {[%clk 0:02:50]} 8. Qb3 {[%clk 0:02:34]}  e6 {[%clk 0:02:50]} 9. Ne5 {[%clk 0:02:21]}  Nxe5 {[%clk 0:02:43]} 10. Bxe5 {[%clk 0:02:22]}  Ne4 {[%clk 0:02:36]} 11. Nxe4 {[%clk 0:02:22]}  Bxe4 {[%clk 0:02:36]} 12. f3 {[%clk 0:02:22]}  Bh7 {[%clk 0:02:31]} 13. Qxb6 {[%clk 0:02:23]}  axb6 {[%clk 0:02:30]} 14. Kd2 {[%clk 0:02:23]}  f6 {[%clk 0:02:31]} 15. Bg3 {[%clk 0:02:23]}  b5 {[%clk 0:02:27]} 16. Bd3 {[%clk 0:02:20]}  Kd7 {[%clk 0:02:28]} 17. Bxh7 {[%clk 0:02:20]}  Rxh7 {[%clk 0:02:29]} 18. a3 {[%clk 0:02:20]}  Bd6 {[%clk 0:02:23]} 19. Bxd6 {[%clk 0:02:12]}  Kxd6 {[%clk 0:02:24]} 20. e4 {[%clk 0:02:12]}  g5 {[%clk 0:02:23]} 21. h4 {[%clk 0:02:11]}  Rah8 {[%clk 0:02:17]} 22. Rh3 {[%clk 0:02:10]}  gxh4 {[%clk 0:02:15]} 23. Rxh4 {[%clk 0:02:08]}  Rg8 {[%clk 0:02:16]} 24. Rh2 {[%clk 0:02:08]}  Rhg7 {[%clk 0:02:14]} 25. Rg1 {[%clk 0:02:08]}  e5 {[%clk 0:02:09]} 26. dxe5+ {[%clk 0:02:07]}  fxe5 {[%clk 0:02:09]} 27. Ke3 {[%clk 0:02:06]}  Ke6 {[%clk 0:02:06]} 28. Rxh6+ {[%clk 0:02:05]}  Ke7 {[%clk 0:02:00]} 29. g4 {[%clk 0:02:06]}  Rf7 {[%clk 0:01:56]} 30. Rg3 {[%clk 0:01:59]}  Kd7 {[%clk 0:01:44]} 31. exd5 {[%clk 0:01:57]}  cxd5 {[%clk 0:01:44]} 32. Rb6 {[%clk 0:01:56]}  Kc7 {[%clk 0:01:41]} 33. Rxb5 {[%clk 0:01:56]}  Kc6 {[%clk 0:01:42]} 34. Ra5 {[%clk 0:01:51]}  Rf4 {[%clk 0:01:38]} 35. b4 {[%clk 0:01:46]}  Rd8 {[%clk 0:01:33]} 36. Rc5+ {[%clk 0:01:45]}  Kb6 {[%clk 0:01:30]} 37. g5 {[%clk 0:01:42]}  d4+ {[%clk 0:01:29]} 38. cxd4 {[%clk 0:01:42]}  Rdxd4 {[%clk 0:01:20]} 39. Rxe5 {[%clk 0:01:38]}  Rc4 {[%clk 0:01:18]} 40. g6 {[%clk 0:01:24]}  Rf8 {[%clk 0:01:13]} 41. g7 {[%clk 0:01:22]}  Rg8 {[%clk 0:01:12]} 42. Rg6+ {[%clk 0:01:18]}  Ka7 {[%clk 0:01:11]} 43. Re7 {[%clk 0:01:17]}  Rc3+ {[%clk 0:01:08]} 44. Kf4 {[%clk 0:01:16]}  Rxa3 {[%clk 0:01:07]} 45. Rf7 {[%clk 0:01:16]}  Ra5 {[%clk 0:01:06]} 46. bxa5 {[%clk 0:01:15]} 1-0


[Site "https://www.chess.com"]

[Event "Titled Tuesday Blitz October 25 Late 2022"]
[White "Petrova, Irina"]
[Black "Averjanov, Alexey"]
[WhiteFideId "14124122"]
[BlackFideId "14109867"]
[WhiteElo "2023"]
[BlackElo "2651"]
[Result "0-1"]
[Round "10"]
[TimeControl "180+1"]
[Date "2022.10.26"]
[WhiteClock "0:00:04"]
[BlackClock "0:00:12"]

1. e4 {[%clk 0:02:57]}  c6 {[%clk 0:03:00]} 2. d4 {[%clk 0:02:57]}  d5 {[%clk 0:03:01]} 3. Nc3 {[%clk 0:02:57]}  dxe4 {[%clk 0:03:01]} 4. Nxe4 {[%clk 0:02:58]}  Bf5 {[%clk 0:03:01]} 5. Ng3 {[%clk 0:02:58]}  Bg6 {[%clk 0:03:02]} 6. h4 {[%clk 0:02:59]}  h6 {[%clk 0:03:02]} 7. Nf3 {[%clk 0:02:59]}  Nd7 {[%clk 0:03:02]} 8. h5 {[%clk 0:03:00]}  Bh7 {[%clk 0:03:03]} 9. Bd3 {[%clk 0:03:00]}  Bxd3 {[%clk 0:03:03]} 10. Qxd3 {[%clk 0:03:01]}  e6 {[%clk 0:03:04]} 11. Bd2 {[%clk 0:03:00]}  Ngf6 {[%clk 0:03:05]} 12. O-O-O {[%clk 0:03:00]}  Be7 {[%clk 0:03:06]} 13. Ne4 {[%clk 0:02:58]}  Nxe4 {[%clk 0:03:05]} 14. Qxe4 {[%clk 0:02:59]}  Nf6 {[%clk 0:03:06]} 15. Qe2 {[%clk 0:02:59]}  Qd5 {[%clk 0:03:06]} 16. Kb1 {[%clk 0:02:56]}  Qe4 {[%clk 0:03:06]} 17. Be3 {[%clk 0:02:52]}  Ng4 {[%clk 0:03:06]} 18. Nd2 {[%clk 0:02:32]}  Qf5 {[%clk 0:03:05]} 19. f3 {[%clk 0:02:26]}  Nxe3 {[%clk 0:03:05]} 20. Qxe3 {[%clk 0:02:27]}  Bg5 {[%clk 0:03:06]} 21. Qb3 {[%clk 0:02:23]}  O-O-O {[%clk 0:02:55]} 22. Ne4 {[%clk 0:02:19]}  Be7 {[%clk 0:02:52]} 23. Ka1 {[%clk 0:01:43]}  Rd7 {[%clk 0:02:51]} 24. c3 {[%clk 0:01:39]}  Rhd8 {[%clk 0:02:50]} 25. Qa4 {[%clk 0:01:36]}  Kb8 {[%clk 0:02:45]} 26. Qc2 {[%clk 0:01:30]}  Qf4 {[%clk 0:02:41]} 27. Qe2 {[%clk 0:01:24]}  Rd5 {[%clk 0:02:35]} 28. g3 {[%clk 0:01:22]}  Qf5 {[%clk 0:02:34]} 29. g4 {[%clk 0:01:14]}  Qf4 {[%clk 0:02:34]} 30. Qh2 {[%clk 0:01:10]}  Qxh2 {[%clk 0:02:31]} 31. Rxh2 {[%clk 0:01:11]}  c5 {[%clk 0:02:29]} 32. Rhd2 {[%clk 0:01:10]}  cxd4 {[%clk 0:02:28]} 33. Rxd4 {[%clk 0:01:09]}  Rxd4 {[%clk 0:02:28]} 34. Rxd4 {[%clk 0:01:10]}  Rxd4 {[%clk 0:02:28]} 35. cxd4 {[%clk 0:01:11]}  Kc7 {[%clk 0:02:29]} 36. Kb1 {[%clk 0:01:11]}  Kc6 {[%clk 0:02:29]} 37. Kc2 {[%clk 0:01:11]}  b5 {[%clk 0:02:16]} 38. Kd3 {[%clk 0:01:11]}  a6 {[%clk 0:02:15]} 39. a3 {[%clk 0:00:59]}  a5 {[%clk 0:02:06]} 40. Nf2 {[%clk 0:00:50]}  Kd5 {[%clk 0:02:02]} 41. Nd1 {[%clk 0:00:50]}  a4 {[%clk 0:01:58]} 42. Nc3+ {[%clk 0:00:49]}  Kc6 {[%clk 0:01:58]} 43. Ke4 {[%clk 0:00:46]}  Bg5 {[%clk 0:01:57]} 44. Ne2 {[%clk 0:00:45]}  Kd6 {[%clk 0:01:54]} 45. f4 {[%clk 0:00:44]}  Bf6 {[%clk 0:01:50]} 46. Nc1 {[%clk 0:00:44]}  Bh4 {[%clk 0:01:45]} 47. Nd3 {[%clk 0:00:43]}  Be7 {[%clk 0:01:32]} 48. Ne5 {[%clk 0:00:42]}  f6 {[%clk 0:01:31]} 49. Nd3 {[%clk 0:00:34]}  Bd8 {[%clk 0:01:31]} 50. f5 {[%clk 0:00:34]}  Ba5 {[%clk 0:01:23]} 51. fxe6 {[%clk 0:00:32]}  Kxe6 {[%clk 0:01:24]} 52. Nc5+ {[%clk 0:00:31]}  Ke7 {[%clk 0:01:24]} 53. Kd5 {[%clk 0:00:27]}  f5 {[%clk 0:00:48]} 54. gxf5 {[%clk 0:00:27]}  Kf6 {[%clk 0:00:49]} 55. Nd3 {[%clk 0:00:22]}  Kxf5 {[%clk 0:00:46]} 56. Kc6 {[%clk 0:00:22]}  g5 {[%clk 0:00:41]} 57. hxg6 {[%clk 0:00:21]}  Kxg6 {[%clk 0:00:42]} 58. Kxb5 {[%clk 0:00:19]}  Bc7 {[%clk 0:00:41]} 59. d5 {[%clk 0:00:19]}  Kf5 {[%clk 0:00:38]} 60. Kc6 {[%clk 0:00:18]}  Bd8 {[%clk 0:00:35]} 61. d6 {[%clk 0:00:18]}  h5 {[%clk 0:00:34]} 62. Kd7 {[%clk 0:00:10]}  Bg5 {[%clk 0:00:31]} 63. Ke8 {[%clk 0:00:10]}  Ke4 {[%clk 0:00:30]} 64. Nf2+ {[%clk 0:00:09]}  Kf3 {[%clk 0:00:28]} 65. Nh3 {[%clk 0:00:09]}  Be3 {[%clk 0:00:26]} 66. d7 {[%clk 0:00:09]}  Bb6 {[%clk 0:00:26]} 67. Ng5+ {[%clk 0:00:07]}  Kg4 {[%clk 0:00:23]} 68. Ne4 {[%clk 0:00:07]}  h4 {[%clk 0:00:21]} 69. d8=Q {[%clk 0:00:07]}  Bxd8 {[%clk 0:00:20]} 70. Kxd8 {[%clk 0:00:08]}  Kf4 {[%clk 0:00:17]} 71. Nf2 {[%clk 0:00:08]}  Ke3 {[%clk 0:00:17]} 72. Ng4+ {[%clk 0:00:07]}  Kd3 {[%clk 0:00:17]} 73. Kc7 {[%clk 0:00:06]}  Kc2 {[%clk 0:00:11]} 74. Kb6 {[%clk 0:00:03]}  Kxb2 {[%clk 0:00:11]} 75. Kb5 {[%clk 0:00:04]}  Kxa3 {[%clk 0:00:12]} 76. Kc4 {[%clk 0:00:04]}  Kb2 {[%clk 0:00:12]} 0-1


[Site "https://www.chess.com"]

[Event "Titled Tuesday Blitz October 25 Late 2022"]
[White "Petrovic, Aleksa"]
[Black "Melikyan, Gnel"]
[WhiteFideId "967629"]
[BlackFideId "54109990"]
[WhiteElo "2242"]
[BlackElo "2138"]
[Result "1-0"]
[Round "10"]
[TimeControl "180+1"]
[Date "2022.10.26"]
[WhiteClock "0:02:23"]
[BlackClock "0:02:13"]

1. e4 {[%clk 0:03:00]}  c6 {[%clk 0:02:59]} 2. f3 {[%clk 0:03:00]}  d5 {[%clk 0:02:56]} 3. d4 {[%clk 0:03:00]}  dxe4 {[%clk 0:02:51]} 4. fxe4 {[%clk 0:03:00]}  e5 {[%clk 0:02:51]} 5. Nf3 {[%clk 0:03:00]}  Bg4 {[%clk 0:02:47]} 6. Bc4 {[%clk 0:03:00]}  Nf6 {[%clk 0:02:44]} 7. c3 {[%clk 0:02:53]}  exd4 {[%clk 0:02:33]} 8. Bxf7+ {[%clk 0:02:45]}  Ke7 {[%clk 0:02:30]} 9. Bb3 {[%clk 0:02:34]}  dxc3 {[%clk 0:02:25]} 10. Qe2 {[%clk 0:02:27]}  g6 {[%clk 0:02:13]} 11. e5 {[%clk 0:02:23]} 1-0


[Site "https://www.chess.com"]

[Event "Titled Tuesday Blitz October 25 Late 2022"]
[White "Predke, Alexandr"]
[Black "Deac, Bogdan-Daniel"]
[WhiteFideId "24107581"]
[BlackFideId "1226380"]
[WhiteElo "2614"]
[BlackElo "2648"]
[Result "1/2-1/2"]
[Round "10"]
[TimeControl "180+1"]
[Date "2022.10.26"]
[WhiteClock "0:00:07"]
[BlackClock "0:00:06"]

1. Nf3 {[%clk 0:03:00]}  d5 {[%clk 0:02:59]} 2. g3 {[%clk 0:03:01]}  Nd7 {[%clk 0:02:58]} 3. d4 {[%clk 0:03:00]}  Ngf6 {[%clk 0:02:58]} 4. Bg2 {[%clk 0:02:59]}  e6 {[%clk 0:02:58]} 5. O-O {[%clk 0:02:54]}  Be7 {[%clk 0:02:58]} 6. c4 {[%clk 0:02:52]}  O-O {[%clk 0:02:58]} 7. Qd3 {[%clk 0:02:48]}  c5 {[%clk 0:02:52]} 8. cxd5 {[%clk 0:02:37]}  Nxd5 {[%clk 0:02:50]} 9. Nc3 {[%clk 0:02:31]}  b6 {[%clk 0:02:30]} 10. Nxd5 {[%clk 0:02:22]}  exd5 {[%clk 0:02:30]} 11. dxc5 {[%clk 0:02:18]}  Nxc5 {[%clk 0:02:28]} 12. Qc2 {[%clk 0:02:14]}  Ba6 {[%clk 0:02:18]} 13. Rd1 {[%clk 0:02:12]}  Rc8 {[%clk 0:02:18]} 14. Nd4 {[%clk 0:01:27]}  Bf6 {[%clk 0:02:15]} 15. Be3 {[%clk 0:01:08]}  Re8 {[%clk 0:01:44]} 16. Bf3 {[%clk 0:00:54]}  Qd7 {[%clk 0:01:28]} 17. Qf5 {[%clk 0:00:39]}  Qxf5 {[%clk 0:01:05]} 18. Nxf5 {[%clk 0:00:40]}  Bxb2 {[%clk 0:01:05]} 19. Rab1 {[%clk 0:00:40]}  Be5 {[%clk 0:01:06]} 20. Rxd5 {[%clk 0:00:33]}  Bc4 {[%clk 0:01:03]} 21. Rd2 {[%clk 0:00:34]}  Be6 {[%clk 0:01:00]} 22. Nd4 {[%clk 0:00:29]}  Bxd4 {[%clk 0:00:42]} 23. Bxd4 {[%clk 0:00:30]}  Red8 {[%clk 0:00:39]} 24. Rbd1 {[%clk 0:00:25]}  h6 {[%clk 0:00:38]} 25. Kg2 {[%clk 0:00:20]}  Na4 {[%clk 0:00:22]} 26. a3 {[%clk 0:00:15]}  Bb3 {[%clk 0:00:18]} 27. Re1 {[%clk 0:00:12]}  Bd5 {[%clk 0:00:16]} 28. e3 {[%clk 0:00:05]}  Bxf3+ {[%clk 0:00:15]} 29. Kxf3 {[%clk 0:00:06]}  Rd5 {[%clk 0:00:15]} 30. Red1 {[%clk 0:00:05]}  Ra5 {[%clk 0:00:11]} 31. Rd3 {[%clk 0:00:05]}  Rc7 {[%clk 0:00:05]} 32. g4 {[%clk 0:00:05]}  f6 {[%clk 0:00:04]} 33. h4 {[%clk 0:00:05]}  Nc5 {[%clk 0:00:04]} 34. Bxc5 {[%clk 0:00:05]}  Raxc5 {[%clk 0:00:03]} 35. Rd8+ {[%clk 0:00:05]}  Kf7 {[%clk 0:00:04]} 36. R1d4 {[%clk 0:00:04]}  h5 {[%clk 0:00:03]} 37. gxh5 {[%clk 0:00:03]}  Rxh5 {[%clk 0:00:03]} 38. R8d7+ {[%clk 0:00:03]}  Rxd7 {[%clk 0:00:03]} 39. Rxd7+ {[%clk 0:00:04]}  Kg6 {[%clk 0:00:04]} 40. Rxa7 {[%clk 0:00:05]}  Rxh4 {[%clk 0:00:04]} 41. Rb7 {[%clk 0:00:05]}  Ra4 {[%clk 0:00:04]} 42. Rxb6 {[%clk 0:00:05]}  Rxa3 {[%clk 0:00:04]} 43. Kg2 {[%clk 0:00:05]}  Ra5 {[%clk 0:00:05]} 44. Kf3 {[%clk 0:00:06]}  Rf5+ {[%clk 0:00:04]} 45. Kg2 {[%clk 0:00:06]}  Rg5+ {[%clk 0:00:05]} 46. Kf3 {[%clk 0:00:07]}  Rf5+ {[%clk 0:00:05]} 47. Kg2 {[%clk 0:00:07]}  Rh5 {[%clk 0:00:06]} 48. Kf3 {[%clk 0:00:07]}  Rf5+ {[%clk 0:00:06]} 1/2-1/2


[Site "https://www.chess.com"]